{"text_format":"1","workbook":"xlsx","n_sheets":3,"sheets":["Livrets","Calcul mental","Feuil1"],"not_rendered":{"charts":0,"images":15,"macros":1,"external_links":0,"defined_names":1,"comments":0,"pivot_tables":0},"unopened":[],"bounds":{"document_bytes":16777216,"sheet_cells":100000,"rows_first":2000,"rows_last":500,"rows_between":2000,"halvings":0,"cell_chars":16384,"cell_head_chars":4096},"cells_cut":0,"cells_raw":0,"read":"whole","date_system":"1900"}

{"sheet":"Livrets","index":0,"n_rows":24,"n_cols":13,"rows_kept":24,"cut":false,"hidden":false,"merged":[[3,12,11,12],[4,0,5,1],[3,0,3,2]]}
[null,null,"Nouvelle question : Cliquer ou sur un bouton \"Question\" ou dans le cadre aux bords rouges ou avec le clavier Ctrl + q."]
[null,null,"Réponse dans le carré orange, soit avec le clavier puis \"Enter\", soit avec les menus déroulants puis clic sur la flèche grise. ",null,null,null,null,null,null,null,150,"zoom"]
[null,null,"La flèche bleue permet une nouvelle réponse à la même question. (idem clic carré orange)",null,null,null,null,null,null,null,5,"image","Le livret est un bon  entraînement pour ton cerveau !"]
[{"$f":"IF(A12=0,\"Calcul oral rapide avec (Ctrl +q) et (Ctrl+w)\",\"\")","v":"Calcul oral rapide avec (Ctrl +q) et (Ctrl+w)"},null,null,"minimum","maximum",null,null,null,null,null,0,"correc"]
["Livrets :",null,"multiplicande",2,8,{"$f":"IF(D5>E5,\"<-- erreur !\",\"\")","v":""},null,null,null,null,0,"nb ques"]
[null,null,"multiplicateur",null,12,null,null,null,null,null,0,"nb juste"]
[null,null,null,null,null,null,null,null,null,null,{"$f":"IF(H8=K8,1,0)","v":0},"1 si juste "]
[null,null,null,0," x",0," = "," ",{"$f":"IF(H8=\" \",\" \",IF(H8=D8*F8,\"A\",\"B\"))","v":" "},null,{"$f":"D8*F8","v":0},"Solution"]
[]
[null,null,null,null,null,null,null,null,null,null,0]
[null,null,null,null,null,null,null,null,null,null,1]
[{"$f":"K5","v":0},"      Réponses :",{"$f":"REPT(\"n\",K5)","v":""},null,null,null,null,null,null,null,2]
[{"$f":"K6+K7","v":0},"      Justes :",{"$f":"REPT(\"n\",K6+K7)","v":""},null,null,null,null,null,"pour réponse orale",null,3]
[{"$f":"K4","v":0},null,{"$f":"REPT(\"n\",K4)","v":""},null,null,null,null,"(Ctrl+w)",null,null,4,null,"Le calcul oral aussi !!!"]
[null,null,null,null,null,null,null,null,null,null,5]
[null,null,null,null,null,null,null,null,null,null,6]
[null,null,null,null,null,null,null,null,null,null,7]
[null,null,null,null,null,null,null,null,null,null,8]
[null,null,{"$f":"K2","v":150},null,null,null,null,null,null,null,9]
["© Y. Péguiron - 2020"]
[null,null,null,null,null,null,null,null,null,null,1]
[null,null,null,null,null,null,null,null,null,null,1]
[null,null,null,null,null,null,null,null,null,null,1]
[null,null,null,null,null,null,null,null,null,null,{"$f":"((K21-1)*100)+((K22-1)*10)+(K23-1)","v":0}]

{"sheet":"Calcul mental","index":1,"n_rows":27,"n_cols":24,"rows_kept":27,"cut":false,"hidden":false,"merged":[[8,13,10,16],[11,13,11,16],[2,13,2,16],[7,13,7,16],[3,13,4,13],[5,13,6,16],[3,14,4,15],[3,16,4,16],[22,18,22,20],[23,18,23,20],[13,1,13,11],[14,1,14,11],[15,1,15,2],[15,4,15,5],[12,14,13,16],[12,1,12,11]]}
["è",null,null,null,null,null,null,null,null,null,null,null,null,"ç",null,null,null,null,"Commantaire",8,"multipli->",1]
[null," "," "," "," "," "," "," "," "," "," "," ",null,null,null,null,null,null,"série / flèches",1,{"$f":"IF(OR(S5=2,Q4=\"C\"),0,1)","v":0},0]
[null," "," "," "," "," "," "," "," "," "," "," ",null,{"$f":"IF(S5=2,\"Clique sur 'Nouveau calcul !'\",IF(T2<5,\"Clique sur 'Opération suivante '!\",\"Donne ta réponse !\"))","v":"Clique sur 'Nouveau calcul !'"},null,null,null,null,"solution",170,"voir solu ->",false]
[null," "," "," "," "," "," "," "," "," "," "," ",null,"Réponse :"," ",null,{"$f":"IF(V3=TRUE,\"J\",IF(O4=\" \",\" \",IF(O4=T3,\"C\",\"D\")))","v":" "},null,"opération",5,"Mode jun",true]
[null," "," "," "," "," "," "," "," "," "," "," ",null,null,null,null,null,{"$f":"IF(V16=1,\"<- Réponses intermédiaires admises !\",\"\")","v":""},2,"<-somme","nbques ->",0]
[null," "," "," "," "," "," "," "," "," "," "," ",null,{"$f":"IF(O4=\" \",\"\",IF(Q4=\"D\",\"Essaie encore …\",VLOOKUP(T1,S6:T20,2)))","v":""},null,null,null,null,1,"Super !","nbjuste ->",0]
[null," "," "," "," "," "," "," "," "," "," "," ",null,null,null,null,null,null,2,"Bravo !","Q4='C'",{"$f":"IF(Q4=\"C\",1,0)","v":0}]
[null," "," "," "," "," "," "," "," "," "," "," ",null,null,null,null,null,null,3,"Magnifique !","antitriche",{"$f":"T1+V7","v":8}]
[null," "," "," "," "," "," "," "," "," "," "," ",null,null,null,null,null,"ç",4,"La classe !","H.départ ->",693.6240234375]
[null," "," "," "," "," "," "," "," "," "," "," ",null,null,null,null,null,null,5,"Top !","H.fin ->",693.6240234375]
[null," "," "," "," "," "," "," "," "," "," "," ",null,null,null,null,null,null,6,"Génial !","Durée ex.",{"$f":"INT(V10-V9)","v":0}]
[null," "," "," "," "," "," "," "," "," "," "," ",null,null,null,null,null,"ç",7,"Quelle maîtrise !","secondes",{"$f":"MOD(V11,60)","v":0},null,{"$f":"IF(V16=1,\"Voir la première  opération.\",\"\")","v":""}]
[null,{"$f":"IF(S5=2,S25,IF(V16=1,S25,\"\"))","v":"           Le bouton 'New' pemet de lancer une nouvelle partie en mettant les compteurs ci-dessous à zéro."},null,null,null,null,null,null,null,null,null,null,null,null,{"$f":"IF(V16=1,\"'Voir la solution' comptera la réponse comme fausse. Par contre, la flèche de retour bleue permet de saisir une nouvelle réponse sans frais ! \",\"\")","v":""},null,null,null,8,"Tu es l'as du calcul !","minutres",{"$f":"INT(V11/60)","v":0}]
["?",{"$f":"IF(V5<1,\"\",REPT(\"l\",V5-1))","v":""},null,null,null,null,null,null,null,null,null,null,null,null,null,null,null,null,9,"Tu ne peux pas faire mieux !"]
[{"$f":"\"C\"","v":"C"},{"$f":"IF(V6<0,\"\",REPT(\"l\",V6))","v":""},null,null,null,null,null,null,null,null,null,null,null,null,null,null,null,null,10,"Oh.. la star !"]
["·",{"$f":"V13&\" min \"&V12&\" sec\"","v":"0 min 0 sec"},null,"Moyenne : ",{"$f":"IF(V11=0,\"\",INT(V11/V5)&\" sec\")","v":""},null,null,null,null,null,null,null,null,null,null,null,null,null,11,"Félicitations !","Information",0]
[null,null,null,null,null,null,null,null,null,null,null,null,null,null,null,null,null,null,12,"Bravo, très bien !"]
[null,null,null,null,null,null,null,null,null,null,null,null,null,null,null,null,null,null,13,"Trop fort !"]
["© Y. Péguiron - 2020",null,{"$f":"V20","v":100},null,null,null,null,null,null,null,null,null,null,null,null,null,null,null,14,"Well done !"]
[null,null,null,null,null,null,null,null,null,null,null,null,null,null,null,null,null,null,15,"Ce n'est pas grave…","zoom",100]
[]
[]
[null,null,null,null,null,null,null,null,null,null,null,null,null,null,null,null,null,null,{"$f":"IF(S5=2,\"  Bienvenue dans la zone de calcul oral.                          Choisissez vos options en haut à droite !\",\"\")","v":"  Bienvenue dans la zone de calcul oral.                          Choisissez vos options en haut à droite !"}]
[]
[null,null,null,null,null,null,null,null,null,null,null,null,null,null,null,null,null,null,{"$f":"\"           Le bouton 'New' pemet de lancer une nouvelle partie en mettant les compteurs ci-dessous à zéro.\"","v":"           Le bouton 'New' pemet de lancer une nouvelle partie en mettant les compteurs ci-dessous à zéro."}]
[]
[null,null,null,null,null,null,null,null,null,null,null,null,null,null,null,null,null,null,{"$f":"\"\"","v":""}]

{"sheet":"Feuil1","index":2,"n_rows":1,"n_cols":17,"rows_kept":1,"cut":false,"hidden":true,"merged":[]}
[1,2,3,4,5,6,7,8,9,10,11,12,13,14,15,16,17]